[Event "44th Chess Olympiad Open 2022"]
[Site "Chennai"]
[Date "2022.08.05"]
[Round "7.71"]
[White "Ortega Amarelle, Mariano"]
[Black "Khan, Taffin"]
[Result "1-0"]
[ECO "E40"]
[WhiteElo "2463"]
[BlackElo "2019"]
[Annotator "TA"]
[PlyCount "102"]
[EventDate "2022.07.29"]
[EventType "team-tourn"]
[EventCountry "IND"]
[SourceTitle "playchess.com"]
[Source "ChessBase"]
[SourceQuality "1"]
[WhiteTeam "CPV"]
[BlackTeam "Guyana"]
[BlackTeamCountry "GUY"]
[TimeControl "40/5400+30:1800+30"]

{[%evp 18,102,70,71,93,100,97,66,88,78,92,100,133,121,125,126,119,121,124,129,182,135,175,166,174,146,165,151,157,113,153,141,133,132,132,124,155,122,121,113,130,79,93,98,195,95,207,185,208,200,193,152,246,245,353,305,440,239,249,251,299,268,328,316,322,308,300,300,295,266,442,378,370,360,392,392,479,472,766,757,740,712,1507,1446,1590,1444,29993]} 1. d4 {[%emt 0:00:09]} Nf6 {[%emt 0:00:07]} 2. c4 {[%emt 0:00:07]} e6 {[%emt 0:00:05]} 3. Nc3 {[%emt 0:00:09]} Bb4 {[%emt 0:00:10]} 4. e3 {[%emt 0:00:10]} O-O {[%emt 0:01:33]} 5. Bd3 {[%emt 0:00:12]} d6 {[%emt 0:01:05]} 6. Nge2 {[%emt 0:00:39]} Nc6 {[%emt 0:00:47]} 7. a3 {[%emt 0:00:18]} Bxc3+ {[%emt 0:00:15]} 8. Nxc3 {[%emt 0:00:08]} e5 {[%emt 0:00:06]} 9. d5 {[%emt 0:01:29]} Ne7 {[%emt 0:00:13]} 10. O-O {[%emt 0:01:30]} Ne8 {[%emt 0:06:36] E40: Nimzo-Indian: Rubinstein (4 e3): Unusual Black 4th moves.} 11. f4 {[%emt 0:05:22] [#]} f5 $146 {[%emt 0:01:26]} ({Predecessor:} 11... exf4 12. exf4 Bf5 13. Be2 Bd7 14. Be3 f5 15. Bf3 Nf6 16. Re1 Ng6 17. g3 a6 18. b4 {1-0 (40) Alatortsev,V-Liublinsky,V Moscow 1950}) 12. b4 {[%emt 0:06:26]} e4 {[%emt 0:05:54] White is slightly better.} 13. Be2 {[%emt 0:00:28]} a5 {[%emt 0:01:07]} 14. Bb2 {[%emt 0:00:10]} axb4 {[%emt 0:01:21]} 15. axb4 {[%emt 0:00:07]} Rxa1 {[%emt 0:00:07]} 16. Qxa1 {[%emt 0:06:32]} Bd7 {[%emt 0:07:48]} 17. Qa7 {[%emt 0:03:07]} b6 {[%emt 0:00:10]} 18. Ra1 {[%emt 0:09:59][%cal Bf1a1,Ba1a2,Ba2g2][%mdl 32] White is much more active.} Ng6 {[%emt 0:07:12]} (18... Nf6 $16 19. h3 h6) 19. g3 {[%emt 0:11:55]} (19. c5 $18) 19... Nh8 {[%emt 0:03:22]} 20. Bd1 {[%emt 0:13:24]} Nf7 {[%emt 0:26:44]} 21. Ra2 {[%emt 0:02:15]} h6 {[%emt 0:03:58]} 22. Ba1 {[%emt 0:08:14]} Kh7 {[%emt 0:00:00]} 23. Rg2 {[%emt 0:08:06]} g5 {[%emt 0:06:51]} 24. Qa2 {[%emt 0:04:31]} Rg8 {[%emt 0:01:47]} 25. Qd2 {[%emt 0:03:40]} Qf6 {[%emt 0:11:03]} 26. Bb2 {[%emt 0:02:53][%cal Oc3e4] Threatens to win with Nxe4!} Qg6 {[%emt 0:01:29]} 27. Bc2 {[%emt 0:03:01]} h5 {[%emt 0:01:59]} 28. h3 {[%emt 0:02:34]} Nh6 {[%emt 0:01:55]} 29. fxg5 {[%emt 0:05:24]} (29. Qe1 $142) 29... Qxg5 $16 {[%emt 0:00:09]} 30. Qf2 $1 {[%emt 0:00:12]} h4 {[%emt 0:02:56] [#]} (30... Qe7 $16) 31. Ne2 {[%emt 0:01:21]} ({Don't play} 31. gxh4 $6 Qxg2+ 32. Qxg2 Rxg2+ 33. Kxg2 Nf7 $16) (31. g4 $1 $18 {[%cal Oc3e4] has better winning chances. Black must now prevent Nxe4!} Nf6 32. Ne2) 31... Nf6 {[%emt 0:00:44]} (31... hxg3 $16 32. Nxg3 (32. Rxg3 Qh4 $16) 32... Nf6) 32. g4 $18 {[%emt 0:00:57]} Nfxg4 {[%emt 0:02:30]} 33. hxg4 {[%emt 0:00:03]} Nxg4 {[%emt 0:00:10]} 34. Qf4 {[%emt 0:00:11]} h3 {[%emt 0:03:03] [#]} (34... Qxf4 $16 {was necessary.} 35. Nxf4 (35. exf4 Ra8 $16) 35... Nxe3 36. Rxg8 Kxg8) 35. Rg3 $1 {[%emt 0:01:02]} h2+ {[%emt 0:00:54]} (35... Qxf4 $142 36. Nxf4 Nxe3 37. Rxg8 Kxg8) 36. Kh1 {[%emt 0:00:02]} Qxf4 {[%emt 0:02:09]} (36... Qh6 {is a better defense.} 37. Bc3 Rg6) 37. exf4 {[%emt 0:00:17]} (37. Nxf4 $142 Ne5 38. Rxg8 Kxg8 39. Bxe5 dxe5 40. Ng6) 37... Ra8 {[%emt 0:00:09]} 38. Nc3 {[%emt 0:01:16][%cal Oc3e4] Prevents Ra2. And now Nxe4! would win.} Kg6 {[%emt 0:00:24]} 39. Bd1 {[%emt 0:00:41]} e3 {[%emt 0:01:09]} 40. Bxg4 {[%emt 0:00:24]} fxg4 {[%emt 0:00:10]} 41. Rxe3 {[%emt 0:30:48]} Rh8 {[%emt 0:30:49]} 42. Ne2 {[%emt 0:00:00]} Rh7 {[%emt 0:00:00]} 43. Ng3 {[%emt 0:00:00]} Ba4 $2 {[%emt 0:00:00]} (43... Rh3 44. Bc3 Bc8) 44. f5+ {[%emt 0:00:00]} Kf7 {[%emt 0:00:00]} 45. Nf1 {[%emt 0:00:00]} Rh5 {[%emt 0:00:00]} 46. f6 {[%emt 0:00:00]} Rf5 {[%emt 0:00:00]} 47. Nxh2 {[%emt 0:00:00] White is clearly winning.} Rf4 {[%emt 0:00:00]} (47... Rf2 $142 48. Bd4 Kf8) 48. Kg2 {[%emt 0:00:00]} Rxc4 {[%emt 0:01:53]} 49. Kg3 {[%emt 0:01:01]} Bd1 {[%emt 0:00:31]} 50. Bc3 {[%emt 0:00:33] White threatens Re7+ and mate.} Kg6 {[%emt 0:01:10]} 51. Nf1 {[%emt 0:00:39]} Kf5 {[%emt 0:02:00] Weighted Error Value: White=0.18 (very precise) /Black=0.36} 1-0

[Event "44th Chess Olympiad Open 2022"]
[Site "Chennai"]
[Date "2022.08.05"]
[Round "7.71"]
[White "Mirulla, David"]
[Black "Neto, Roberto"]
[Result "1-0"]
[ECO "B33"]
[WhiteElo "1953"]
[BlackElo "1663"]
[Annotator "TA"]
[PlyCount "65"]
[EventDate "2022.07.29"]
[EventType "team-tourn"]
[EventCountry "IND"]
[SourceTitle "playchess.com"]
[Source "ChessBase"]
[SourceQuality "1"]
[WhiteTeam "CPV"]
[BlackTeam "Guyana"]
[BlackTeamCountry "GUY"]
[TimeControl "40/5400+30:1800+30"]

{[%evp 16,65,0,0,99,91,332,331,337,331,305,225,212,225,229,237,229,231,226,239,260,248,262,256,264,241,242,213,218,190,245,205,328,325,329,300,287,133,813,820,944,938,1384,973,985,966,29984,29985,29990,29991,29998,29999]} 1. e4 {[%emt 0:00:06]} c5 {[%emt 0:00:19]} 2. Nf3 {[%emt 0:00:07][%cal Bg1f3,Bf3d4,Bd4b5,Bb5a3,Ba3c4][%mdl 32]} Nc6 {[%emt 0:00:10]} 3. d4 {[%emt 0:00:10]} cxd4 {[%emt 0:00:01]} 4. Nxd4 {[%emt 0:00:11]} Nf6 {[%emt 0:00:09]} 5. Nc3 {[%emt 0:00:16]} e5 {[%emt 0:08:12]} 6. Ndb5 {[%emt 0:00:15]} d6 {[%emt 0:00:17]} 7. a4 {[%emt 0:00:32]} a6 {[%emt 0:05:43]} 8. Na3 {[%emt 0:00:11]} Be6 {[%emt 0:10:11] 8...Bg4 is the modern continuation.} 9. Bc4 {[%emt 0:26:04]} Bxc4 {[%emt 0:09:12] B33: Sicilian: Pelikan and Sveshnikov Variations.} (9... Be7 $11 {keeps the balance.}) 10. Nxc4 $16 {[%emt 0:00:10]} Nxe4 $2 {[%emt 0:11:16]} 11. Nxe4 $18 {[%emt 0:24:52][%cal Bc3e4,Be4f6,Bf6d5][%mdl 32]} d5 {[%emt 0:00:10] White has a decisive advantage.} 12. Bg5 {[%emt 0:03:54]} f6 {[%emt 0:05:16] [#]} 13. Bxf6 {[%emt 0:01:24][%mdl 512]} gxf6 {[%emt 0:02:12] [#]} 14. Qxd5 {[%emt 0:00:55][%mdl 512]} Qxd5 {[%emt 0:07:01]} 15. Nxf6+ {[%emt 0:00:14]} Kf7 {[%emt 0:00:42]} 16. Nxd5 {[%emt 0:00:11] [#] Pair of Knights!} Bc5 $146 {[%emt 0:02:14]} ({Predecessor:} 16... Rd8 17. Nde3 Ke6 18. O-O Bc5 19. c3 b5 20. axb5 axb5 21. Ra6 Rc8 22. Na5 Kd7 23. Rd1+ Bd6 24. Nf5 {1-0 (24) Nattermueller,I (2118)-Winter,A (2010) Germany 2012}) 17. c3 {[%emt 0:04:51]} Raf8 {[%emt 0:01:07]} 18. Rf1 {[%emt 0:04:53]} Rd8 {[%emt 0:03:23]} 19. O-O-O {[%emt 0:02:04]} b5 {[%emt 0:03:10]} 20. axb5 {[%emt 0:00:53]} axb5 {[%emt 0:00:08]} 21. Nce3 {[%emt 0:00:51]} b4 {[%emt 0:02:43]} 22. Kc2 {[%emt 0:01:59]} Rb8 {[%emt 0:02:30]} (22... bxc3 {was called for.} 23. bxc3 Rd7) 23. Ra1 {[%emt 0:05:02]} b3+ {[%emt 0:05:09]} (23... Rhd8 $142 24. c4 (24. Ra6 Rd6 $18) 24... Rg8) 24. Kd3 {[%emt 0:03:29]} Rhe8 {[%emt 0:11:42]} 25. Ra6 {[%emt 0:04:34]} e4+ {[%emt 0:00:53]} 26. Kc4 {[%emt 0:01:58]} (26. Ke2 $18 {is more deadly.} Ne5 27. Nf6) 26... Ne5+ {[%emt 0:04:27][%mdl 8192]} (26... Rec8 $16 27. Kxc5 Nb4+ 28. Kd4 Nxa6) 27. Kxc5 {[%emt 0:00:26]} Rec8+ {[%emt 0:02:08]} 28. Kd4 {[%emt 0:00:48]} Nd3 {[%emt 0:01:14]} 29. Rf6+ {[%emt 0:08:27]} Kg7 {[%emt 0:01:45]} 30. Ra1 {[%emt 0:01:49] White threatens Ra7+ and mate.} Rf8 {[%emt 0:00:30]} 31. Ra7+ {[%emt 0:01:43] White mates.} Kh8 {[%emt 0:00:23]} 32. Rh6 {[%emt 0:00:47]} Nxb2 {[%emt 0:01:04]} 33. Rhxh7+ {[%emt 0:00:09] Black did not feel at home in the position after the opening.  Weighted Error Value: White=0.29 (precise) /Black=0.82} 1-0

[Event "44th Chess Olympiad Open 2022"]
[Site "Chennai"]
[Date "2022.08.05"]
[Round "7.71"]
[White "Nathoo, Loris"]
[Black "Fortes, Aires"]
[Result "1-0"]
[ECO "D00"]
[WhiteElo "1695"]
[BlackElo "1508"]
[Annotator "NA RC COMBH"]
[PlyCount "57"]
[EventDate "2022.07.29"]
[EventType "team-tourn"]
[EventCountry "IND"]
[SourceTitle "playchess.com"]
[Source "ChessBase"]
[SourceQuality "1"]
[WhiteTeam "Guyana"]
[BlackTeam "CPV"]
[WhiteTeamCountry "GUY"]
[TimeControl "40/5400+30:1800+30"]

1. d4 {[%emt 0:00:03]} Nf6 {[%emt 0:00:08]} 2. Bf4 {[%emt 0:00:07]} d5 {[%emt 0:00:39]} 3. e3 {[%emt 0:00:22]} e6 {[%emt 0:00:27]} 4. Nd2 {[%emt 0:01:51]} Bd6 {[%emt 0:00:40]} 5. Bg3 {[%emt 0:00:31]} O-O {[%emt 0:00:59]} 6. c3 {[%emt 0:06:15]} b6 {[%emt 0:00:36]} 7. Ngf3 {[%emt 0:07:29]} Bb7 {[%emt 0:00:17]} 8. Bh4 {[%emt 0:06:07]} Nbd7 {[%emt 0:05:10]} 9. Bd3 {[%emt 0:03:42]} e5 {[%emt 0:03:06]} 10. dxe5 {[%emt 0:09:31]} Bxe5 {[%emt 0:10:10]} 11. Qc2 {[%emt 0:00:00]} h6 {[%emt 0:00:47]} 12. Bf5 {[%emt 0:08:56]} Qe8 {[%emt 0:03:18]} 13. Nxe5 {[%emt 0:01:17]} Qxe5 {[%emt 0:05:41]} 14. Nf3 {[%emt 0:05:03]} Qe8 {[%emt 0:08:47]} 15. O-O-O {[%emt 0:21:22]} g6 {[%emt 0:06:16]} 16. Bxd7 {[%emt 0:00:00]} Nxd7 {[%emt 0:13:21]} 17. Bg3 {[%emt 0:04:01]} Qc8 {[%emt 0:06:28]} 18. h4 {[%emt 0:02:20]} c5 {[%emt 0:03:34]} 19. h5 {[%emt 0:00:00]} g5 {[%emt 0:06:52]} 20. Qf5 {[%emt 0:02:41]} Re8 {[%emt 0:06:33]} 21. Nxg5 {[%emt 0:00:00]} hxg5 {[%emt 0:00:00]} 22. Qxg5+ {[%emt 0:00:51]} Kh8 {[%emt 0:11:16]} 23. Qh6+ {[%emt 0:00:03]} Kg8 {[%emt 0:00:00]} 24. Rh4 {[%emt 0:00:00]} Nf8 {[%emt 0:00:00]} 25. Qg5+ {[%emt 0:00:18]} Kh7 {[%emt 0:00:00]} 26. Rg4 {[%emt 0:00:36]} Ne6 {[%emt 0:00:00]} 27. Qf5+ {[%emt 0:00:18]} Kh6 {[%emt 0:01:48]} 28. Bf4+ {[%emt 0:01:54]} Nxf4 {[%emt 0:00:00]} 29. Qg5+ {[%emt 0:00:02]} 1-0

[Event "44th Chess Olympiad Open 2022"]
[Site "Chennai"]
[Date "2022.08.05"]
[Round "7.71"]
[White "Lee, Ethan"]
[Black "Rodriguez Guevara, Celia M."]
[Result "1/2-1/2"]
[ECO "D00"]
[WhiteElo "1629"]
[BlackElo "1859"]
[Annotator "NA COMBH"]
[PlyCount "128"]
[EventDate "2022.07.29"]
[EventType "team-tourn"]
[EventCountry "IND"]
[SourceTitle "playchess.com"]
[Source "ChessBase"]
[SourceQuality "1"]
[WhiteTeam "SGP"]
[BlackTeam "CPV"]
[TimeControl "40/5400+30:1800+30"]

1. d4 {[%emt 0:00:03]} d5 {[%emt 0:00:10]} 2. Bf4 {[%emt 0:00:04]} Nf6 {[%emt 0:00:18]} 3. Nc3 {[%emt 0:00:15]} Bf5 {[%emt 0:00:35]} 4. e3 {[%emt 0:01:19]} c5 {[%emt 0:03:26]} 5. Nb5 {[%emt 0:01:45]} Na6 {[%emt 0:02:01]} 6. c3 {[%emt 0:01:02]} e6 {[%emt 0:02:19]} 7. Nf3 {[%emt 0:00:39]} Be7 {[%emt 0:09:07]} 8. h3 {[%emt 0:05:43]} O-O {[%emt 0:01:59]} 9. Be2 {[%emt 0:07:04]} Ne8 {[%emt 0:06:02]} 10. Ne5 {[%emt 0:08:02]} Nac7 {[%emt 0:03:46]} 11. g4 {[%emt 0:27:25]} Be4 {[%emt 0:05:33]} 12. f3 {[%emt 0:01:09]} Bh4+ {[%emt 0:05:21]} 13. Kd2 {[%emt 0:00:10]} Bg6 {[%emt 0:06:19]} 14. Nxg6 {[%emt 0:00:34]} hxg6 {[%emt 0:00:42]} 15. dxc5 {[%emt 0:03:33]} Nxb5 {[%emt 0:05:32]} 16. Bxb5 {[%emt 0:00:04]} Rc8 {[%emt 0:07:10]} 17. b4 {[%emt 0:00:52]} b6 {[%emt 0:06:20]} 18. Ba6 {[%emt 0:03:07]} bxc5 {[%emt 0:14:42]} 19. Bxc8 {[%emt 0:00:11]} Qxc8 {[%emt 0:03:01]} 20. bxc5 {[%emt 0:00:53]} Qxc5 {[%emt 0:02:45]} 21. Qb3 {[%emt 0:02:35]} Nd6 {[%emt 0:05:43]} 22. Bxd6 {[%emt 0:03:51]} Qxd6 {[%emt 0:00:02]} 23. Rab1 {[%emt 0:03:06]} Qg3 {[%emt 0:01:48]} 24. Qd1 {[%emt 0:01:04]} Rc8 {[%emt 0:00:31]} 25. Qe2 {[%emt 0:07:20]} Qc7 {[%emt 0:00:13]} 26. Rhc1 {[%emt 0:02:45]} Qa5 {[%emt 0:03:16]} 27. Rc2 {[%emt 0:07:29]} e5 {[%emt 0:00:11]} 28. Qb5 {[%emt 0:02:20]} Qc7 {[%emt 0:02:11]} 29. Qb7 {[%emt 0:05:11]} Qc5 {[%emt 0:00:26]} 30. Rb5 {[%emt 0:01:27]} Qc4 {[%emt 0:00:08]} 31. Rxd5 {[%emt 0:01:01]} Bf6 {[%emt 0:02:48]} 32. Qb5 {[%emt 0:01:37]} Qc7 {[%emt 0:01:07]} 33. Rd7 {[%emt 0:00:03]} Rd8 {[%emt 0:00:16]} 34. Rxd8+ {[%emt 0:00:15]} Qxd8+ {[%emt 0:00:01]} 35. Ke2 {[%emt 0:00:38]} Qc7 {[%emt 0:00:55]} 36. c4 {[%emt 0:02:19]} e4 {[%emt 0:00:48]} 37. Qe8+ {[%emt 0:00:41]} Kh7 {[%emt 0:00:01]} 38. Qxe4 {[%emt 0:00:17]} Qh2+ {[%emt 0:00:47]} 39. Kd3 {[%emt 0:00:34]} Qg1 {[%emt 0:00:34]} 40. c5 {[%emt 0:01:11]} Qf1+ {[%emt 0:00:27]} 41. Kd2 {[%emt 0:30:15]} Qf2+ {[%emt 0:30:20]} 42. Kd1 {[%emt 0:00:20]} Qf1+ {[%emt 0:00:30]} 43. Kd2 {[%emt 0:00:34]} Qf2+ {[%emt 0:00:00]} 44. Kd3 {[%emt 0:00:00]} Qf1+ {[%emt 0:00:00]} 45. Re2 {[%emt 0:00:00]} Qd1+ {[%emt 0:00:00]} 46. Rd2 {[%emt 0:00:00]} Qb1+ {[%emt 0:00:00]} 47. Ke2 {[%emt 0:00:00]} Qb5+ {[%emt 0:00:00]} 48. Qd3 {[%emt 0:00:00]} Qxc5 {[%emt 0:00:00]} 49. Qd5 {[%emt 0:00:00]} Qb4 {[%emt 0:00:00]} 50. g5 {[%emt 0:00:00]} Bc3 {[%emt 0:00:00]} 51. Rc2 {[%emt 0:00:00]} Ba1 {[%emt 0:01:11]} 52. Qc4 {[%emt 0:00:00]} Qb8 {[%emt 0:01:14]} 53. f4 {[%emt 0:03:03]} Qb7 {[%emt 0:02:17]} 54. Qc6 {[%emt 0:01:18]} Qb4 {[%emt 0:00:42]} 55. Rc1 {[%emt 0:01:39]} Qa3 {[%emt 0:00:56]} 56. Qc2 {[%emt 0:00:32]} Bb2 {[%emt 0:00:26]} 57. Rb1 {[%emt 0:00:27]} Bc3 {[%emt 0:00:39]} 58. Rb3 {[%emt 0:00:22]} Qa6+ {[%emt 0:00:00]} 59. Kf2 {[%emt 0:00:41]} Ba5 {[%emt 0:00:00]} 60. Rb8 {[%emt 0:00:47]} Qe6 {[%emt 0:01:53]} 61. Qa4 {[%emt 0:00:50]} Bb6 {[%emt 0:00:11]} 62. Rxb6 {[%emt 0:00:21]} axb6 {[%emt 0:00:01]} 63. Qd4 {[%emt 0:00:38]} Qxa2+ {[%emt 0:00:07]} 64. Kg3 {[%emt 0:00:04]} Qb1 {[%emt 0:00:08]} 1/2-1/2

[Event "44th Chess Olympiad Open 2022"]
[Site "Chennai"]
[Date "2022.08.05"]
[Round "7.72"]
[White "Husbands, Orlando"]
[Black "Moncur, Cecil"]
[Result "1/2-1/2"]
[ECO "A42"]
[WhiteElo "2353"]
[BlackElo "1815"]
[Annotator "TA"]
[PlyCount "126"]
[EventDate "2022.07.29"]
[EventType "team-tourn"]
[EventCountry "IND"]
[SourceTitle "playchess.com"]
[Source "ChessBase"]
[SourceQuality "1"]
[WhiteTeam "Barbados"]
[BlackTeam "Bahamas"]
[WhiteTeamCountry "BAR"]
[BlackTeamCountry "BAH"]
[TimeControl "40/5400+30:1800+30"]

{[%evp 21,126,53,43,57,64,0,0,-20,-10,-26,-12,-23,-4,-2,67,84,56,-23,-25,-26,18,12,45,0,0,-83,-79,-152,-145,-153,-108,-108,-10,-10,11,14,18,0,0,0,0,0,0,0,0,0,0,0,0,0,74,0,0,0,0,-64,0,0,0,0,0,0,8,0,181,8,8,8,383,395,525,180,170,8,8,8,8,8,8,0,0,0,8,0,0,0,0,0,0,0,0,0,0,0,0,0,0,0,0,0,0,0,5,0,0,0,0]} 1. d4 {[%emt 0:00:01]} g6 {[%emt 0:01:54]} 2. c4 {[%emt 0:00:04]} Bg7 {[%emt 0:00:11]} 3. Nc3 {[%emt 0:00:08]} d6 {[%emt 0:00:19]} 4. e4 {[%emt 0:00:06]} Nc6 {[%emt 0:00:13]} 5. Be3 {[%emt 0:00:08]} e5 {[%emt 0:00:17]} 6. d5 {[%emt 0:00:31]} Nce7 {[%emt 0:00:14]} 7. g4 {[%emt 0:00:10]} f5 {[%emt 0:00:27]} 8. gxf5 {[%emt 0:00:40]} gxf5 {[%emt 0:00:35]} 9. Qh5+ {[%emt 0:00:00]} Ng6 {[%emt 0:00:37]} 10. exf5 {[%emt 0:00:00]} Qh4 {[%emt 0:00:15]} 11. Qf3 {[%emt 0:00:00]} N6e7 {[%emt 0:09:42][%cal Bg6e7,Be7f5,Bf5d4][%mdl 32]} 12. Nb5 {[%emt 0:00:00] A42: Modern Defence: Averbakh Variation.} Kd8 {[%emt 0:00:53]} 13. Nh3 {[%emt 0:00:08] White is more active.} (13. Bd3 Nh6 $11) (13. Qg2 $14 Bh6 14. Nf3) 13... Bh6 $1 $11 {[%emt 0:06:30] [#]} 14. Bd3 $146 {[%emt 0:07:53]} (14. Nxa7 $2 Bd7 15. Rg1 Bxe3 $19) (14. Qg3 $5 {[%cal Rg3h4]} Qf6 15. Rg1 $11) ({Predecessor:} 14. Rg1 Bxe3 15. Qxe3 Nxf5 16. Qg5+ Nf6 17. O-O-O a6 18. Nc3 Rg8 19. Qxh4 Nxh4 20. Rxg8+ Nxg8 {½-½ (61) Notkin,M (2520)-Losev,D (2375) Moscow 1996}) 14... a6 {[%emt 0:06:55]} 15. Nc3 {[%emt 0:06:52]} ({Much weaker is} 15. Bxh6 Nxh6 16. Nc3 Nhxf5 $17) 15... Bxe3 {[%emt 0:02:03]} 16. Qxe3 {[%emt 0:00:02]} Nxf5 {[%emt 0:01:18]} 17. Qg5+ {[%emt 0:04:58]} Qxg5 {[%emt 0:01:10]} ({Don't play} 17... Nge7 18. Bxf5 Qxg5 19. Nxg5 $16) (17... Ke8 $1 $11 18. Bxf5 Qxg5 19. Nxg5 Bxf5) 18. Nxg5 $14 {[%emt 0:00:03]} Ke7 {[%emt 0:00:40] Inhibits Nf7.} 19. Ne6 {[%emt 0:00:23]} (19. f4 $14) 19... Bxe6 $11 {[%emt 0:02:33]} 20. dxe6 {[%emt 0:00:02]} Nd4 {[%emt 0:00:55] Strongly threatening ...c6.} 21. Nd5+ {[%emt 0:00:03]} Kd8 {[%emt 0:00:30]} 22. O-O-O {[%emt 0:05:45]} (22. f4 $5 {[%cal Rf4e5]}) 22... Nxe6 {[%emt 0:02:02] Pair of Knights!} 23. Bf5 {[%emt 0:02:11]} (23. f4 $1 $11) 23... Nd4 $17 {[%emt 0:00:20]} 24. Bh3 {[%emt 0:00:06]} (24. Be4 $142) 24... Ne7 {[%emt 0:02:02]} 25. Nxe7 {[%emt 0:02:44]} Kxe7 {[%emt 0:01:57]} 26. Rhe1 {[%emt 0:00:03]} c5 {[%emt 0:00:31]} (26... Nf3 $17 27. Re3 Raf8) 27. f4 $1 $11 {[%emt 0:00:27]} Kf6 {[%emt 0:03:48]} 28. fxe5+ {[%emt 0:01:02]} dxe5 {[%emt 0:00:15]} 29. Rf1+ {[%emt 0:01:30]} Kg7 {[%emt 0:00:40]} 30. Bg2 {[%emt 0:01:10]} Rab8 {[%emt 0:05:42]} 31. Rde1 {[%emt 0:00:33]} Rhe8 {[%emt 0:01:16]} 32. Bd5 {[%emt 0:00:37]} Re7 {[%emt 0:00:45] Against Rf7+} 33. Rg1+ {[%emt 0:02:52]} Kh8 $1 {[%emt 0:02:53]} 34. Rg5 {[%emt 0:02:20]} Rbe8 {[%emt 0:08:26]} 35. Re4 {[%emt 0:00:18]} Rg7 {[%emt 0:09:25]} (35... Nf3 $11 {keeps the balance.} 36. Rg2 Nd4) 36. Rxg7 {[%emt 0:02:28]} (36. Rexe5 $16 Rxe5 37. Rxe5 Rg1+ 38. Kd2) 36... Kxg7 {[%emt 0:00:00]} 37. Bxb7 $16 {[%emt 0:00:03][%mdl 4096] Endgame KRB-KRN} Kf6 {[%emt 0:00:28]} 38. Rh4 {[%emt 0:05:51]} ({White should play} 38. Bd5 $11) 38... Re7 {[%emt 0:02:00]} (38... Nf5 $15 39. Rxh7 e4) 39. Be4 $11 {[%emt 0:00:35]} Kg5 {[%emt 0:03:15]} 40. Rxh7 {[%emt 0:01:53]} Rxh7 {[%emt 0:00:21]} 41. Bxh7 {[%emt 0:30:03] KB-KN} Nf3 {[%emt 0:30:14]} 42. h3 {[%emt 0:06:25][%cal Ob2b4]} Ng1 $2 {[%emt 0:00:53] [#]} (42... a5 $11 {and Black stays safe.}) 43. h4+ $2 {[%emt 0:02:05]} (43. b4 $1 $18 {[%cal Rb4b5]} cxb4 44. c5) 43... Kxh4 {[%emt 0:00:38]} 44. Kd2 {[%emt 0:03:02]} Kg3 $2 {[%emt 0:04:01][%mdl 8192]} (44... Nf3+ $11 {and Black has nothing to worry.} 45. Ke3 Ng5) 45. Ke3 $18 {[%emt 0:01:48][%cal Ob2b4] b4! is the strong threat.} Nf3 {[%emt 0:03:01]} 46. Bf5 $2 {[%emt 0:03:38]} (46. Bc2 a5 47. Ke4) 46... a5 {[%emt 0:01:49]} 47. a3 $2 {[%emt 0:07:15]} ({White has to play} 47. Ke4 $18) 47... Ng5 $1 $11 {[%emt 0:01:56] The position is equal.} 48. Bd7 {[%emt 0:00:03]} Nf3 {[%emt 0:01:25]} 49. Be6 {[%emt 0:00:36] [#] Black must now prevent Ke4.} Ng5 {[%emt 0:02:03]} 50. Bd5 {[%emt 0:00:02][%cal Ob2b4]} Kg4 {[%emt 0:00:34]} 51. Be4 {[%emt 0:04:03]} Ne6 {[%emt 0:02:23]} 52. Bb7 {[%emt 0:01:51]} Kf5 {[%emt 0:00:00]} 53. Bc8 {[%emt 0:00:21]} Kf6 $1 {[%emt 0:00:03]} 54. Ke4 {[%emt 0:00:46] Hoping for Kd5.} Nf4 {[%emt 0:02:32]} 55. Bg4 {[%emt 0:01:06]} Kg5 {[%emt 0:01:09]} 56. Bd7 {[%emt 0:00:01]} Kf6 {[%emt 0:00:17]} 57. Bc8 {[%emt 0:00:01]} Ng6 $1 {[%emt 0:05:13]} 58. Bf5 {[%emt 0:06:17] Threatening mate with Bxg6.} Nf4 {[%emt 0:01:06]} 59. Bg4 {[%emt 0:01:26]} Kg5 {[%emt 0:00:20]} 60. Bc8 {[%emt 0:08:53]} Kf6 {[%emt 0:00:18]} 61. Bd7 {[%emt 0:00:44]} Ke7 $1 {[%emt 0:13:21]} 62. Kxe5 {[%emt 0:10:59]} Nd3+ {[%emt 0:00:00]} 63. Ke4 {[%emt 0:00:04]} Nxb2 {[%emt 0:05:11] What a bad dream for Black.  Weighted Error Value: White=0.32/Black=0.32} 1/2-1/2